[Event "Live Chess"]
[Site "Chess.com"]
[Date "2024.06.02"]
[Round "-"]
[White "uselessduffer"]
[Black "matt1979"]
[Result "1-0"]
[WhiteElo "2351"]
[BlackElo "1413"]
[TimeControl "300"]
[EndTime "4:43:56 PDT"]
[Termination "uselessduffer won by resignation"]

1. e4 {[%clk 0:04:56.6]} 1... d6 {[%clk 0:04:58.5]} 2. d4 {[%clk 0:04:55.4]}
2... Nf6 {[%clk 0:04:57.6]} 3. Nc3 {[%clk 0:04:54.3]} 3... Nbd7 {[%clk
0:04:55.6]} 4. g4 {[%clk 0:04:52.3]} 4... h6 {[%clk 0:04:51.3]} 5. h3 {[%clk
0:04:50.9]} 5... e5 {[%clk 0:04:50.2]} 6. Nge2 {[%clk 0:04:49.5]} 6... Be7
{[%clk 0:04:48]} 7. Bg2 {[%clk 0:04:48.1]} 7... c6 {[%clk 0:04:46.6]} 8. Be3
{[%clk 0:04:46.6]} 8... Qc7 {[%clk 0:04:44.6]} 9. Qd2 {[%clk 0:04:41.7]} 9... b6
{[%clk 0:04:40.5]} 10. a4 {[%clk 0:04:30.8]} 10... a5 {[%clk 0:04:33.4]} 11. Ng3
{[%clk 0:04:24.8]} 11... Nf8 {[%clk 0:04:24.4]} 12. Nf5 {[%clk 0:04:17.3]} 12...
Bxf5 {[%clk 0:04:23.1]} 13. exf5 {[%clk 0:04:15.8]} 13... O-O-O {[%clk 0:04:12]}
14. O-O {[%clk 0:03:31.3]} 14... d5 {[%clk 0:04:02.5]} 15. dxe5 {[%clk
0:03:24.1]} 15... N6d7 {[%clk 0:03:54.5]} 16. f4 {[%clk 0:03:13.7]} 16... Nc5
{[%clk 0:03:39.4]} 17. Qd4 {[%clk 0:02:34.9]} 17... Nfd7 {[%clk 0:03:15.4]} 18.
Rab1 {[%clk 0:02:27.9]} 18... g6 {[%clk 0:03:04.1]} 19. f6 {[%clk 0:01:54.8]}
19... Bf8 {[%clk 0:03:02.1]} 20. Qd2 {[%clk 0:01:34.5]} 20... Ne6 {[%clk
0:02:53.4]} 21. Ne2 {[%clk 0:01:28.6]} 21... Bc5 {[%clk 0:02:49.3]} 22. c3
{[%clk 0:01:24.1]} 22... Bxe3+ {[%clk 0:02:45.6]} 23. Qxe3 {[%clk 0:01:24]}
23... Ndc5 {[%clk 0:02:41.5]} 24. b4 {[%clk 0:01:19.6]} 24... axb4 {[%clk
0:02:36.7]} 25. cxb4 {[%clk 0:01:17.8]} 25... Nb7 {[%clk 0:02:30.8]} 26. a5
{[%clk 0:01:14.9]} 26... b5 {[%clk 0:02:27.5]} 27. Rfc1 {[%clk 0:01:03.1]} 27...
Rd7 {[%clk 0:02:18.2]} 28. Ra1 {[%clk 0:00:55.4]} 28... Nbd8 {[%clk 0:02:13.3]}
29. a6 {[%clk 0:00:48.9]} 29... Qa7 {[%clk 0:02:12]} 30. Qxa7 {[%clk 0:00:47.5]}
30... Rxa7 {[%clk 0:02:11.1]} 31. Bxd5 {[%clk 0:00:46.9]} 31... Nc7 {[%clk
0:01:43.3]} 32. Bxc6 {[%clk 0:00:43.7]} 32... Nxc6 {[%clk 0:01:36.6]} 33. Rxc6
{[%clk 0:00:43.6]} 33... Kd7 {[%clk 0:01:35.2]} 34. Rd6+ {[%clk 0:00:41.8]}
34... Kc8 {[%clk 0:01:32.9]} 35. Nd4 {[%clk 0:00:40.9]} 35... Rd8 {[%clk
0:01:28.7]} 36. Rxd8+ {[%clk 0:00:39.2]} 36... Kxd8 {[%clk 0:01:27.8]} 37. Nc6+
{[%clk 0:00:37.8]} 37... Kc8 {[%clk 0:01:23.6]} 38. Nxa7+ {[%clk 0:00:37.7]}
38... Kb8 {[%clk 0:01:22.7]} 39. Nc6+ {[%clk 0:00:36.2]} 39... Ka8 {[%clk
0:01:15.9]} 40. a7 {[%clk 0:00:34.1]} 40... Kb7 {[%clk 0:01:13.1]} 41. Rd1
{[%clk 0:00:31]} 41... Kxc6 {[%clk 0:01:08]} 42. Rc1+ {[%clk 0:00:29.8]} 42...
Kb7 {[%clk 0:01:06.8]} 43. Rxc7+ {[%clk 0:00:29.7]} 43... Kxc7 {[%clk
0:01:05.2]} 44. a8=Q {[%clk 0:00:28.1]} 1-0

[Event "Live Chess"]
[Site "Chess.com"]
[Date "2024.06.02"]
[Round "-"]
[White "Queensandpawns"]
[Black "ACM42"]
[Result "0-1"]
[WhiteElo "2249"]
[BlackElo "2185"]
[TimeControl "300"]
[EndTime "4:44:02 PDT"]
[Termination "ACM42 won by checkmate"]

1. d4 {[%clk 0:04:58.6]} 1... Nf6 {[%clk 0:04:58.1]} 2. Nc3 {[%clk 0:04:58.5]}
2... d5 {[%clk 0:04:55.8]} 3. Bf4 {[%clk 0:04:58.1]} 3... g6 {[%clk 0:04:53]} 4.
e3 {[%clk 0:04:56.3]} 4... Bg7 {[%clk 0:04:45.3]} 5. h4 {[%clk 0:04:53.3]} 5...
h5 {[%clk 0:04:43]} 6. Nf3 {[%clk 0:04:52.4]} 6... Nbd7 {[%clk 0:04:39.8]} 7.
Ne5 {[%clk 0:04:50.5]} 7... c6 {[%clk 0:04:30.7]} 8. Bd3 {[%clk 0:04:49.4]} 8...
Nxe5 {[%clk 0:04:29.6]} 9. dxe5 {[%clk 0:04:49.3]} 9... Ng8 {[%clk 0:04:17.7]}
10. Qf3 {[%clk 0:04:47]} 10... Nh6 {[%clk 0:04:09.2]} 11. O-O-O {[%clk
0:04:46.1]} 11... Ng4 {[%clk 0:04:01.8]} 12. Qg3 {[%clk 0:04:44.3]} 12... Be6
{[%clk 0:03:40.2]} 13. f3 {[%clk 0:04:42.8]} 13... Nh6 {[%clk 0:03:38.7]} 14. e4
{[%clk 0:04:41.5]} 14... d4 {[%clk 0:03:35.6]} 15. Ne2 {[%clk 0:04:40.6]} 15...
c5 {[%clk 0:03:32.3]} 16. Bb5+ {[%clk 0:04:38.5]} 16... Kf8 {[%clk 0:03:29.3]}
17. Bd2 {[%clk 0:04:11.3]} 17... Qb6 {[%clk 0:03:25.2]} 18. Ba4 {[%clk
0:04:00.7]} 18... c4 {[%clk 0:03:23.9]} 19. Nf4 {[%clk 0:03:58.4]} 19... c3
{[%clk 0:03:05.1]} 20. Nxe6+ {[%clk 0:03:55.9]} 20... Qxe6 {[%clk 0:03:03.6]}
21. bxc3 {[%clk 0:03:54.6]} 21... Qxa2 {[%clk 0:03:02.7]} 22. Bxh6 {[%clk
0:03:41.9]} 22... Bxh6+ {[%clk 0:02:56]} 23. f4 {[%clk 0:03:41.4]} 23... Qa1+
{[%clk 0:02:47.1]} 24. Kd2 {[%clk 0:03:40.2]} 24... dxc3+ {[%clk 0:02:45.9]} 25.
Ke2 {[%clk 0:03:37.6]} 25... Qxa4 {[%clk 0:02:44]} 26. Qxc3 {[%clk 0:03:36]}
26... Qxe4+ {[%clk 0:02:41.8]} 27. Kf2 {[%clk 0:03:34.8]} 27... Qxf4+ {[%clk
0:02:38]} 28. Qf3 {[%clk 0:03:34.7]} 28... Qxf3+ {[%clk 0:02:35.3]} 29. gxf3
{[%clk 0:03:34.6]} 29... Kg7 {[%clk 0:02:33.9]} 30. Rd7 {[%clk 0:03:33.8]} 30...
Rac8 {[%clk 0:02:27]} 31. Rxb7 {[%clk 0:03:32.5]} 31... Rxc2+ {[%clk 0:02:25.3]}
32. Kg3 {[%clk 0:03:32.4]} 32... a5 {[%clk 0:02:20.1]} 33. f4 {[%clk 0:03:30.9]}
33... Rc3+ {[%clk 0:02:18.4]} 34. Kh2 {[%clk 0:03:29.7]} 34... Bxf4+ {[%clk
0:02:17.3]} 35. Kg2 {[%clk 0:03:29.1]} 35... Rd8 {[%clk 0:02:16.3]} 36. e6
{[%clk 0:03:29]} 36... Rd2+ {[%clk 0:02:15.3]} 37. Kg1 {[%clk 0:03:26.5]} 37...
Rc1# {[%clk 0:02:15.2]} 0-1

[Event "Live Chess"]
[Site "Chess.com"]
[Date "2024.06.02"]
[Round "-"]
[White "Zhevzh1k7"]
[Black "McFim"]
[Result "0-1"]
[WhiteElo "1106"]
[BlackElo "1721"]
[TimeControl "300"]
[EndTime "4:44:26 PDT"]
[Termination "McFim won by checkmate"]

1. e4 {[%clk 0:04:57.2]} 1... c6 {[%clk 0:04:57.4]} 2. d4 {[%clk 0:04:55.1]}
2... d5 {[%clk 0:04:57.3]} 3. f3 {[%clk 0:04:53.4]} 3... dxe4 {[%clk 0:04:56]}
4. fxe4 {[%clk 0:04:52.2]} 4... e5 {[%clk 0:04:55.6]} 5. Nf3 {[%clk 0:04:51.6]}
5... Bg4 {[%clk 0:04:53.9]} 6. Be3 {[%clk 0:04:38.4]} 6... Nf6 {[%clk 0:04:29]}
7. Nc3 {[%clk 0:04:33.6]} 7... Bb4 {[%clk 0:04:25.1]} 8. dxe5 {[%clk 0:04:32.1]}
8... Qxd1+ {[%clk 0:04:20.4]} 9. Rxd1 {[%clk 0:04:28.6]} 9... Nxe4 {[%clk
0:04:17.3]} 10. Bd2 {[%clk 0:04:11]} 10... Nxd2 {[%clk 0:04:12.3]} 11. Kxd2
{[%clk 0:04:03.9]} 11... Nd7 {[%clk 0:04:05.3]} 12. a3 {[%clk 0:04:00.5]} 12...
Ba5 {[%clk 0:03:59.7]} 13. b4 {[%clk 0:03:57.6]} 13... Bc7 {[%clk 0:03:57.9]}
14. h3 {[%clk 0:03:54.3]} 14... Be6 {[%clk 0:03:53.7]} 15. Re1 {[%clk
0:03:44.8]} 15... O-O-O {[%clk 0:03:51]} 16. Bd3 {[%clk 0:03:37.5]} 16... h6
{[%clk 0:03:32.6]} 17. g4 {[%clk 0:03:34]} 17... Rhe8 {[%clk 0:03:29.5]} 18. Nd4
{[%clk 0:03:27.7]} 18... Nxe5 {[%clk 0:03:19.5]} 19. Nxe6 {[%clk 0:03:23.6]}
19... Rxe6 {[%clk 0:03:16.7]} 20. Rhf1 {[%clk 0:03:10.5]} 20... Nc4+ {[%clk
0:02:45.8]} 21. Kc1 {[%clk 0:03:03]} 21... Rxe1+ {[%clk 0:02:41.7]} 22. Rxe1
{[%clk 0:03:00.5]} 22... Bf4+ {[%clk 0:02:40.8]} 23. Kb1 {[%clk 0:02:56.2]}
23... Nxa3+ {[%clk 0:02:27.8]} 24. Ka2 {[%clk 0:02:54.5]} 24... Bd2 {[%clk
0:02:21.7]} 25. Re7 {[%clk 0:02:42.8]} 25... Bxc3 {[%clk 0:02:17.2]} 26. Kxa3
{[%clk 0:02:41.4]} 26... Rf8 {[%clk 0:02:06]} 27. Bf5+ {[%clk 0:02:37]} 27...
Kb8 {[%clk 0:02:04.4]} 28. Kb3 {[%clk 0:02:31.5]} 28... Bf6 {[%clk 0:02:02.3]}
29. Rd7 {[%clk 0:02:26.1]} 29... a6 {[%clk 0:01:54]} 30. c4 {[%clk 0:02:18.4]}
30... Bd8 {[%clk 0:01:48.2]} 31. Ka4 {[%clk 0:02:10.4]} 31... Bc7 {[%clk
0:01:46.1]} 32. b5 {[%clk 0:02:04.8]} 32... axb5+ {[%clk 0:01:44.3]} 33. cxb5
{[%clk 0:02:02.9]} 33... cxb5+ {[%clk 0:01:43.2]} 34. Kxb5 {[%clk 0:02:02.8]}
34... g6 {[%clk 0:01:42]} 35. Be4 {[%clk 0:01:57.1]} 35... f5 {[%clk 0:01:28.3]}
36. gxf5 {[%clk 0:01:50.5]} 36... gxf5 {[%clk 0:01:26.9]} 37. Bf3 {[%clk
0:01:45.2]} 37... f4 {[%clk 0:01:25.6]} 38. Rd4 {[%clk 0:01:35.2]} 38... Rf5+
{[%clk 0:01:21]} 39. Kc4 {[%clk 0:01:33.4]} 39... Rf6 {[%clk 0:01:10.9]} 40. Rd5
{[%clk 0:01:25.7]} 40... Rc6+ {[%clk 0:00:34.4]} 41. Rc5 {[%clk 0:01:21.8]}
41... Rxc5+ {[%clk 0:00:33.2]} 42. Kxc5 {[%clk 0:01:21.7]} 42... b6+ {[%clk
0:00:31.4]} 43. Kc6 {[%clk 0:01:19.6]} 43... Bd8 {[%clk 0:00:30.5]} 44. Kb5
{[%clk 0:01:15.2]} 44... Kc7 {[%clk 0:00:28.6]} 45. Kc4 {[%clk 0:01:13.8]} 45...
Kd6 {[%clk 0:00:27.2]} 46. Kd4 {[%clk 0:01:12.2]} 46... Bg5 {[%clk 0:00:23.6]}
47. Kc4 {[%clk 0:01:07.5]} 47... Bf6 {[%clk 0:00:21.9]} 48. Kb5 {[%clk 0:01:06]}
48... Bd4 {[%clk 0:00:20.7]} 49. h4 {[%clk 0:01:01.8]} 49... Ke5 {[%clk
0:00:19.3]} 50. h5 {[%clk 0:01:00.7]} 50... Kf5 {[%clk 0:00:17.8]} 51. Kc4
{[%clk 0:00:57.1]} 51... Be3 {[%clk 0:00:17]} 52. Kb5 {[%clk 0:00:55.5]} 52...
Kg5 {[%clk 0:00:16.1]} 53. Kc6 {[%clk 0:00:52.7]} 53... Kh4 {[%clk 0:00:16]} 54.
Kd5 {[%clk 0:00:50.5]} 54... Kg3 {[%clk 0:00:15.9]} 55. Bd1 {[%clk 0:00:48.3]}
55... f3 {[%clk 0:00:14.6]} 56. Bxf3 {[%clk 0:00:44.3]} 56... Kxf3 {[%clk
0:00:13.5]} 57. Kc4 {[%clk 0:00:44.2]} 57... Kg4 {[%clk 0:00:12.2]} 58. Kb5
{[%clk 0:00:44.1]} 58... Bc5 {[%clk 0:00:11.1]} 59. Kc4 {[%clk 0:00:43.1]} 59...
Kxh5 {[%clk 0:00:11]} 60. Kd3 {[%clk 0:00:41.9]} 60... Kg4 {[%clk 0:00:10.9]}
61. Kc4 {[%clk 0:00:41.8]} 61... Kg3 {[%clk 0:00:10.5]} 62. Kb5 {[%clk
0:00:41.7]} 62... h5 {[%clk 0:00:09.8]} 63. Kc6 {[%clk 0:00:41.6]} 63... h4
{[%clk 0:00:09.7]} 64. Kb5 {[%clk 0:00:41.4]} 64... h3 {[%clk 0:00:09.4]} 65.
Kc6 {[%clk 0:00:41.3]} 65... h2 {[%clk 0:00:08.7]} 66. Kb5 {[%clk 0:00:41.2]}
66... h1=Q {[%clk 0:00:07.5]} 67. Ka6 {[%clk 0:00:39.8]} 67... Qh6 {[%clk
0:00:07.4]} 68. Kb7 {[%clk 0:00:39.7]} 68... b5 {[%clk 0:00:06.6]} 69. Kc7
{[%clk 0:00:38.5]} 69... Qg7+ {[%clk 0:00:06]} 70. Kc6 {[%clk 0:00:37.4]} 70...
Bg1 {[%clk 0:00:05.8]} 71. Kxb5 {[%clk 0:00:36.3]} 71... Qd4 {[%clk 0:00:05.3]}
72. Kc6 {[%clk 0:00:35.6]} 72... Qc5+ {[%clk 0:00:04.3]} 73. Kd7 {[%clk
0:00:34.8]} 73... Qb6 {[%clk 0:00:03.8]} 74. Ke7 {[%clk 0:00:33.8]} 74... Qc6
{[%clk 0:00:03.1]} 75. Kf7 {[%clk 0:00:32.5]} 75... Kf4 {[%clk 0:00:03]} 76. Ke7
{[%clk 0:00:31.5]} 76... Kf5 {[%clk 0:00:02.9]} 77. Kf7 {[%clk 0:00:30.2]} 77...
Qd7+ {[%clk 0:00:02.3]} 78. Kf8 {[%clk 0:00:29.2]} 78... Kf6 {[%clk 0:00:01.7]}
79. Kg8 {[%clk 0:00:28.2]} 79... Qg7# {[%clk 0:00:01.1]} 0-1

[Event "Live Chess"]
[Site "Chess.com"]
[Date "2024.06.02"]
[Round "-"]
[White "blunderabit"]
[Black "FlyingChessKestrel13"]
[Result "1-0"]
[WhiteElo "1774"]
[BlackElo "2076"]
[TimeControl "300"]
[EndTime "4:44:32 PDT"]
[Termination "blunderabit won by resignation"]

1. e4 {[%clk 0:04:56.1]} 1... e5 {[%clk 0:04:58.8]} 2. Nf3 {[%clk 0:04:50.1]}
2... Nf6 {[%clk 0:04:57.9]} 3. d4 {[%clk 0:04:47.1]} 3... exd4 {[%clk
0:04:55.1]} 4. e5 {[%clk 0:04:44.5]} 4... Nd5 {[%clk 0:04:54]} 5. Qxd4 {[%clk
0:04:43]} 5... Nb6 {[%clk 0:04:53.1]} 6. Nc3 {[%clk 0:04:39.7]} 6... Nc6 {[%clk
0:04:51.9]} 7. Qf4 {[%clk 0:04:38.3]} 7... Be7 {[%clk 0:04:47.3]} 8. Bd3 {[%clk
0:04:20.9]} 8... d6 {[%clk 0:04:37.1]} 9. exd6 {[%clk 0:04:07.3]} 9... Qxd6
{[%clk 0:04:35.5]} 10. Nb5 {[%clk 0:03:56.3]} 10... Qxf4 {[%clk 0:04:30.3]} 11.
Bxf4 {[%clk 0:03:54.3]} 11... Nd5 {[%clk 0:04:29.9]} 12. Nxc7+ {[%clk
0:03:50.7]} 12... Nxc7 {[%clk 0:04:28.8]} 13. Bxc7 {[%clk 0:03:50]} 13... O-O
{[%clk 0:04:28]} 14. O-O {[%clk 0:03:47.8]} 14... Bf6 {[%clk 0:04:25]} 15. c3
{[%clk 0:03:43.2]} 15... Bg4 {[%clk 0:04:23.1]} 16. Be4 {[%clk 0:03:37.7]} 16...
Rfe8 {[%clk 0:04:19.9]} 17. Rfe1 {[%clk 0:03:34.4]} 17... Rac8 {[%clk
0:04:15.4]} 18. Bf4 {[%clk 0:03:29.8]} 18... Re7 {[%clk 0:03:51.8]} 19. h3
{[%clk 0:03:28.4]} 19... Bh5 {[%clk 0:03:46.1]} 20. g4 {[%clk 0:03:22.5]} 20...
Bg6 {[%clk 0:03:42.1]} 21. Bxg6 {[%clk 0:03:20.3]} 21... hxg6 {[%clk 0:03:40.3]}
22. Rxe7 {[%clk 0:03:17.7]} 22... Nxe7 {[%clk 0:03:39.3]} 23. Rd1 {[%clk
0:03:12.7]} 23... Nc6 {[%clk 0:03:28.1]} 24. Rd7 {[%clk 0:03:08]} 24... b6
{[%clk 0:03:26.8]} 25. Kf1 {[%clk 0:02:58.7]} 25... Kf8 {[%clk 0:03:20.8]} 26.
g5 {[%clk 0:02:25.9]} 26... Ke8 {[%clk 0:03:10.8]} 27. Rb7 {[%clk 0:02:03.6]}
27... Be7 {[%clk 0:03:08.7]} 28. h4 {[%clk 0:01:57.2]} 28... Bc5 {[%clk
0:02:54.4]} 29. Ne5 {[%clk 0:01:48.1]} 29... Nxe5 {[%clk 0:02:52.7]} 30. Bxe5
{[%clk 0:01:45.2]} 30... a5 {[%clk 0:02:51.7]} 31. Bxg7 {[%clk 0:01:42.8]} 31...
Rd8 {[%clk 0:02:49.3]} 32. Bf6 {[%clk 0:01:34.4]} 32... Rd2 {[%clk 0:02:46.4]}
33. Rb8+ {[%clk 0:01:29.9]} 33... Kd7 {[%clk 0:02:44.1]} 34. Rd8+ {[%clk
0:01:28.4]} 1-0

[Event "Live Chess"]
[Site "Chess.com"]
[Date "2024.06.02"]
[Round "-"]
[White "kylet1990"]
[Black "KeithArkell"]
[Result "0-1"]
[WhiteElo "750"]
[BlackElo "2428"]
[TimeControl "300"]
[EndTime "4:44:38 PDT"]
[Termination "KeithArkell won by resignation"]

1. e4 {[%clk 0:04:58.2]} 1... c6 {[%clk 0:04:59.2]} 2. Nc3 {[%clk 0:04:56]} 2...
d5 {[%clk 0:04:59.1]} 3. exd5 {[%clk 0:04:54.5]} 3... cxd5 {[%clk 0:04:58.3]} 4.
Nf3 {[%clk 0:04:53.5]} 4... Nf6 {[%clk 0:04:57.4]} 5. d4 {[%clk 0:04:52.2]} 5...
Nc6 {[%clk 0:04:56.5]} 6. Bf4 {[%clk 0:04:50.3]} 6... Bg4 {[%clk 0:04:55.4]} 7.
h3 {[%clk 0:04:48.6]} 7... Bxf3 {[%clk 0:04:54.1]} 8. Qxf3 {[%clk 0:04:47.9]}
8... e6 {[%clk 0:04:53.6]} 9. Bd3 {[%clk 0:04:45.1]} 9... Nxd4 {[%clk
0:04:52.1]} 10. Qd1 {[%clk 0:04:40]} 10... Nc6 {[%clk 0:04:50.7]} 11. O-O {[%clk
0:04:38.5]} 11... Bd6 {[%clk 0:04:49.2]} 12. Bxd6 {[%clk 0:04:35.8]} 12... Qxd6
{[%clk 0:04:48.3]} 13. Nb5 {[%clk 0:04:34.2]} 13... Qd7 {[%clk 0:04:46]} 14. c4
{[%clk 0:04:24.8]} 14... O-O {[%clk 0:04:42.5]} 15. cxd5 {[%clk 0:04:23.2]}
15... Nxd5 {[%clk 0:04:41.6]} 16. Qc2 {[%clk 0:04:18.7]} 16... g6 {[%clk
0:04:39.3]} 17. Rfe1 {[%clk 0:04:14.9]} 17... Ncb4 {[%clk 0:04:37.6]} 18. Qc4
{[%clk 0:04:05.4]} 18... Rac8 {[%clk 0:04:35]} 19. Qd4 {[%clk 0:03:44]} 19...
Nxd3 {[%clk 0:04:32.3]} 20. Qxd3 {[%clk 0:03:41.1]} 20... a6 {[%clk 0:04:27]}
21. Nc3 {[%clk 0:03:35.7]} 21... Rfd8 {[%clk 0:04:26.2]} 22. Nxd5 {[%clk
0:03:33.2]} 22... Qxd5 {[%clk 0:04:24.9]} 23. Qxd5 {[%clk 0:03:30.6]} 23... Rxd5
{[%clk 0:04:24.8]} 24. Red1 {[%clk 0:03:26.8]} 24... Rxd1+ {[%clk 0:04:23]} 25.
Rxd1 {[%clk 0:03:25.5]} 25... Rc2 {[%clk 0:04:22.4]} 26. Rd7 {[%clk 0:03:22.4]}
26... Rxb2 {[%clk 0:04:20.9]} 27. a3 {[%clk 0:03:19.4]} 27... Kg7 {[%clk
0:04:16.4]} 28. f4 {[%clk 0:03:16.1]} 28... h6 {[%clk 0:04:15.3]} 29. g4 {[%clk
0:03:10.1]} 29... Rb3 {[%clk 0:04:10.9]} 30. a4 {[%clk 0:03:07.2]} 30... Rxh3
{[%clk 0:04:08.1]} 31. Kg2 {[%clk 0:03:06.8]} 31... Ra3 {[%clk 0:04:07]} 32.
Rxb7 {[%clk 0:03:04]} 32... Rxa4 {[%clk 0:04:06.3]} 33. Kg3 {[%clk 0:03:03]}
33... Ra3+ {[%clk 0:04:04.9]} 34. Kh4 {[%clk 0:03:01.8]} 34... Rf3 {[%clk
0:04:00.1]} 35. g5 {[%clk 0:02:56.9]} 35... Rxf4+ {[%clk 0:03:58.2]} 36. Kg3
{[%clk 0:02:53.4]} 36... hxg5 {[%clk 0:03:57.5]} 37. Ra7 {[%clk 0:02:49.4]}
37... Ra4 {[%clk 0:03:56.5]} 38. Rd7 {[%clk 0:02:44.5]} 38... Kf6 {[%clk
0:03:55.5]} 0-1

[Event "Live Chess"]
[Site "Chess.com"]
[Date "2024.06.02"]
[Round "-"]
[White "CarmelJane"]
[Black "RichardABates"]
[Result "0-1"]
[WhiteElo "2033"]
[BlackElo "2337"]
[TimeControl "300"]
[EndTime "4:44:45 PDT"]
[Termination "RichardABates won by resignation"]

1. e4 {[%clk 0:04:58.6]} 1... c5 {[%clk 0:04:58.6]} 2. Nf3 {[%clk 0:04:57.7]}
2... d6 {[%clk 0:04:57.1]} 3. c3 {[%clk 0:04:56.5]} 3... Nf6 {[%clk 0:04:55.5]}
4. Be2 {[%clk 0:04:55.4]} 4... Bd7 {[%clk 0:04:53.2]} 5. e5 {[%clk 0:04:50.4]}
5... dxe5 {[%clk 0:04:51.2]} 6. Nxe5 {[%clk 0:04:49.3]} 6... Nc6 {[%clk
0:04:50.4]} 7. Nxd7 {[%clk 0:04:48.1]} 7... Qxd7 {[%clk 0:04:49.2]} 8. O-O
{[%clk 0:04:48]} 8... e6 {[%clk 0:04:45.5]} 9. Bf3 {[%clk 0:04:47.5]} 9... Bd6
{[%clk 0:04:43.8]} 10. Na3 {[%clk 0:04:39.1]} 10... Ne5 {[%clk 0:04:40.2]} 11.
Be2 {[%clk 0:04:33]} 11... h5 {[%clk 0:04:36.9]} 12. d4 {[%clk 0:04:29.4]} 12...
cxd4 {[%clk 0:04:32.6]} 13. cxd4 {[%clk 0:04:29.3]} 13... Nc6 {[%clk 0:04:30.9]}
14. Be3 {[%clk 0:04:17.6]} 14... Ng4 {[%clk 0:04:27.8]} 15. g3 {[%clk
0:03:53.2]} 15... Nf6 {[%clk 0:04:23.6]} 16. Bf3 {[%clk 0:03:29.5]} 16... h4
{[%clk 0:04:20.8]} 17. Bg5 {[%clk 0:03:19.2]} 17... hxg3 {[%clk 0:04:18.3]} 18.
fxg3 {[%clk 0:03:16.2]} 18... Be7 {[%clk 0:03:58.3]} 19. Rc1 {[%clk 0:02:34.7]}
19... Nxd4 {[%clk 0:03:46.2]} 20. Bg2 {[%clk 0:02:17.1]} 20... O-O {[%clk
0:03:33.4]} 21. Nc4 {[%clk 0:02:05.2]} 21... Rad8 {[%clk 0:03:17.4]} 22. Ne5
{[%clk 0:02:00.4]} 22... Qb5 {[%clk 0:03:14.3]} 23. Nc4 {[%clk 0:01:45.7]} 23...
Qxg5 {[%clk 0:03:10.3]} 0-1

[Event "Live Chess"]
[Site "Chess.com"]
[Date "2024.06.02"]
[Round "-"]
[White "JohanKjeldahl"]
[Black "lateforthesky"]
[Result "1-0"]
[WhiteElo "1794"]
[BlackElo "2041"]
[TimeControl "300"]
[EndTime "4:44:47 PDT"]
[Termination "JohanKjeldahl won on time"]

1. c4 {[%clk 0:04:57.6]} 1... g6 {[%clk 0:04:58.6]} 2. d4 {[%clk 0:04:55.5]}
2... Bg7 {[%clk 0:04:57.6]} 3. Nc3 {[%clk 0:04:54.6]} 3... d6 {[%clk 0:04:57.1]}
4. e4 {[%clk 0:04:53.6]} 4... Nf6 {[%clk 0:04:55.3]} 5. f3 {[%clk 0:04:52.5]}
5... O-O {[%clk 0:04:53.7]} 6. Be3 {[%clk 0:04:51.4]} 6... a6 {[%clk 0:04:53.1]}
7. Qd2 {[%clk 0:04:50.5]} 7... Nc6 {[%clk 0:04:52.6]} 8. Bd3 {[%clk 0:04:46.7]}
8... e5 {[%clk 0:04:50.7]} 9. d5 {[%clk 0:04:45]} 9... Nd4 {[%clk 0:04:49.5]}
10. Nge2 {[%clk 0:04:42.3]} 10... Nd7 {[%clk 0:04:38.9]} 11. O-O-O {[%clk
0:04:37.7]} 11... Nc5 {[%clk 0:04:36.8]} 12. h4 {[%clk 0:04:34.5]} 12... Nxd3+
{[%clk 0:04:33.9]} 13. Qxd3 {[%clk 0:04:31.5]} 13... f5 {[%clk 0:04:33.4]} 14.
Nxd4 {[%clk 0:04:25.1]} 14... exd4 {[%clk 0:04:24.1]} 15. Bxd4 {[%clk
0:04:23.9]} 15... fxe4 {[%clk 0:04:23.2]} 16. Nxe4 {[%clk 0:04:22.4]} 16... Bf5
{[%clk 0:04:21.1]} 17. Bxg7 {[%clk 0:04:19.4]} 17... Kxg7 {[%clk 0:04:19.9]} 18.
Qd4+ {[%clk 0:04:18.4]} 18... Kg8 {[%clk 0:04:17.7]} 19. h5 {[%clk 0:04:16.8]}
19... Bxe4 {[%clk 0:04:02.9]} 20. Qxe4 {[%clk 0:04:09.2]} 20... Qg5+ {[%clk
0:03:59.5]} 21. Kb1 {[%clk 0:04:07.9]} 21... Rae8 {[%clk 0:03:55.9]} 22. Qc2
{[%clk 0:03:57.8]} 22... gxh5 {[%clk 0:03:47.7]} 23. g4 {[%clk 0:03:55.2]} 23...
h4 {[%clk 0:03:46.1]} 24. Rdg1 {[%clk 0:03:47.7]} 24... Rxf3 {[%clk 0:03:41.7]}
25. a3 {[%clk 0:03:21.5]} 25... Rfe3 {[%clk 0:03:07.9]} 26. Rh2 {[%clk
0:03:13.3]} 26... Re1+ {[%clk 0:03:04.4]} 27. Rxe1 {[%clk 0:03:10.9]} 27...
Rxe1+ {[%clk 0:03:03.9]} 28. Ka2 {[%clk 0:03:09.7]} 28... Rg1 {[%clk 0:02:53.8]}
29. Qe2 {[%clk 0:03:04.2]} 29... Rxg4 {[%clk 0:02:43.7]} 30. Qe6+ {[%clk
0:03:02.6]} 30... Kg7 {[%clk 0:02:42.7]} 31. Rf2 {[%clk 0:02:59.9]} 31... Rf4
{[%clk 0:02:35.8]} 32. Qd7+ {[%clk 0:02:48.2]} 32... Kh6 {[%clk 0:02:33.7]} 33.
Re2 {[%clk 0:02:43.9]} 33... Rf6 {[%clk 0:02:28.2]} 34. Qxc7 {[%clk 0:02:40.3]}
34... Qg4 {[%clk 0:02:23.5]} 35. Re7 {[%clk 0:02:37]} 35... Qf5 {[%clk 0:02:10]}
36. Qd8 {[%clk 0:02:23.3]} 36... h3 {[%clk 0:01:59.7]} 37. Re2 {[%clk
0:02:10.7]} 37... Rg6 {[%clk 0:01:50.6]} 38. Qh4+ {[%clk 0:02:05.3]} 38... Qh5
{[%clk 0:01:44.6]} 39. Qf4+ {[%clk 0:02:03.3]} 39... Qg5 {[%clk 0:01:43.7]} 40.
Qf8+ {[%clk 0:02:00.1]} 40... Kh5 {[%clk 0:01:40]} 41. Qf3+ {[%clk 0:01:54.2]}
41... Qg4 {[%clk 0:01:21.7]} 42. Qf2 {[%clk 0:01:37.9]} 42... Qxc4+ {[%clk
0:01:02.4]} 43. b3 {[%clk 0:01:32.1]} 43... Qxe2+ {[%clk 0:00:59.1]} 44. Qxe2+
{[%clk 0:01:28.3]} 44... Kh4 {[%clk 0:00:56.2]} 45. Qe4+ {[%clk 0:01:19.8]}
45... Rg4 {[%clk 0:00:55.1]} 46. Qxh7+ {[%clk 0:01:17.9]} 46... Kg3 {[%clk
0:00:53.6]} 47. Qd3+ {[%clk 0:01:15.3]} 47... Kh2 {[%clk 0:00:52.6]} 48. Qf3
{[%clk 0:01:01]} 48... Rg2+ {[%clk 0:00:50.1]} 49. Kb1 {[%clk 0:00:59.4]} 49...
Rg1+ {[%clk 0:00:46.2]} 50. Kc2 {[%clk 0:00:57.5]} 50... Rg2+ {[%clk 0:00:44.3]}
51. Kd1 {[%clk 0:00:56]} 51... Rg3 {[%clk 0:00:36]} 52. Qf4 {[%clk 0:00:44.3]}
52... Kg2 {[%clk 0:00:32.2]} 53. Ke1 {[%clk 0:00:39.6]} 53... Rf3 {[%clk
0:00:23]} 54. Qg4+ {[%clk 0:00:31.6]} 54... Rg3 {[%clk 0:00:18.2]} 55. Qe2+
{[%clk 0:00:30]} 55... Kh1 {[%clk 0:00:15.5]} 56. Qe4+ {[%clk 0:00:23.5]} 56...
Rg2 {[%clk 0:00:13.3]} 57. Kf1 {[%clk 0:00:19.6]} 57... Kh2 {[%clk 0:00:12.4]}
58. Qf4+ {[%clk 0:00:16.9]} 58... Kh1 {[%clk 0:00:11.2]} 59. Qxd6 {[%clk
0:00:15.7]} 59... Ra2 {[%clk 0:00:08]} 60. Qg3 {[%clk 0:00:11.1]} 60... Ra1+
{[%clk 0:00:07]} 61. Kf2 {[%clk 0:00:09.8]} 61... Ra2+ {[%clk 0:00:06.1]} 62.
Kf3 {[%clk 0:00:07.8]} 1-0